[Event "15th Chennai GM Open 2025"]
[Site "Chennai"]
[Date "2025.01.09"]
[Round "10.12"]
[White "Rosh Jain"]
[Black "Sanket Chakravarty"]
[Result "1-0"]
[ECO "C90"]
[WhiteElo "2071"]
[BlackElo "2374"]
[Annotator "TA"]
[PlyCount "79"]
[EventDate "2025.01.02"]
[EventType "swiss"]
[EventCountry "IND"]
[SourceTitle "playchess.com"]
[Source "ChessBase"]
[SourceQuality "1"]
[TimeControl "5400+30"]

{[%evp 18,79,27,23,51,40,35,22,22,25,22,20,23,12,19,8,31,-6,-10,-8,8,-15,60,48,74,69,52,38,41,37,27,35,37,35,29,38,155,147,229,231,221,220,222,260,321,273,854,839,2283,1829,2148,2685,3442,3397,3113,2527,29960,29961,29957,29957,29942,11472,29983,29983]} 1. e4 {[%emt 0:00:04]} e5 {[%emt 0:06:25]} 2. Nf3 {[%emt 0:00:06]} Nc6 {[%emt 0:00:05]} 3. Bb5 {[%emt 0:00:06][%cal Bf1b5,Bb5a4,Ba4b3][%mdl 32]} a6 {[%emt 0:00:06]} 4. Ba4 {[%emt 0:00:05]} Nf6 {[%emt 0:00:18]} 5. O-O {[%emt 0:00:09]} Be7 {[%emt 0:00:14]} 6. Re1 {[%emt 0:00:09]} b5 {[%emt 0:00:14]} 7. Bb3 {[%emt 0:00:06]} d6 {[%emt 0:00:07]} 8. a4 {[%emt 0:00:04]} Bd7 {[%emt 0:00:37]} 9. c3 {[%emt 0:02:19]} O-O {[%emt 0:08:31]} 10. d4 {[%emt 0:02:08]} exd4 {[%emt 0:08:50]} 11. cxd4 {[%emt 0:03:30]} Bg4 {[%emt 0:01:52]} 12. axb5 {[%emt 0:09:41]} axb5 {[%emt 0:02:12] The position is equal.} 13. Rxa8 {[%emt 0:00:07]} Qxa8 {[%emt 0:00:06]} 14. Nc3 {[%emt 0:00:04]} Na5 {[%emt 0:10:37]} 15. Bc2 {[%emt 0:08:37][%cal Oh2h3] Threatening h3!} b4 {[%emt 0:01:22]} 16. Ne2 {[%emt 0:04:49]} c5 {[%emt 0:08:15]} (16... Nxe4 $2 17. Bxe4 d5 (17... Qxe4 $2 18. Ng3 $18) 18. Bb1 $18) (16... Bxf3 $5 17. gxf3 Rd8 $11) 17. h3 {[%emt 0:00:01]} Bxf3 {[%emt 0:04:27]} 18. gxf3 {[%emt 0:00:02]} Qc8 {[%emt 0:00:19]} 19. Kh2 {[%emt 0:07:39]} Nc6 {[%emt 0:00:54]} (19... Qc7 $11) 20. d5 $1 $14 {[%emt 0:01:06]} Nd4 {[%emt 0:07:09]} 21. Nxd4 {[%emt 0:12:37]} cxd4 {[%emt 0:00:15]} 22. Ba4 {[%emt 0:03:54]} Qc5 {[%emt 0:06:15]} 23. Bc6 {[%emt 0:04:53]} Nh5 {[%emt 0:07:17]} 24. f4 {[%emt 0:12:19][%cal Bf3f4,Bf4e5][%mdl 32]} g6 {[%emt 0:00:06]} 25. Qd3 {[%emt 0:00:04]} Bh4 {[%emt 0:01:38]} 26. Kg1 {[%emt 0:00:01][%cal Bh2g1,Bg1f1,Bf1f2,Bf2e1][%mdl 32]} f5 {[%emt 0:13:43]} (26... Rb8 $14) 27. e5 $16 {[%emt 0:10:00]} dxe5 {[%emt 0:00:28]} (27... Rb8 $16 28. Bd2 Be7) 28. fxe5 $18 {[%emt 0:00:09]} f4 {[%emt 0:00:04]} 29. Bd2 {[%emt 0:06:30]} Rf5 {[%emt 0:00:49][%cal Bf8f5,Bf5g5,Bg5g3,Bg3d3,Bd3d2][%mdl 32]} 30. Re4 {[%emt 0:02:43]} Rg5+ {[%emt 0:04:25]} 31. Kf1 {[%emt 0:00:06][%cal Oe5e6] Strongly threatening e6!} Bxf2 $2 {[%emt 0:00:06]} (31... Ng3+ 32. fxg3 Rxg3 33. Qxd4 Rf3+ 34. Ke2 Rf2+ 35. Kd3 Rf3+ 36. Be3 Rxe3+ 37. Rxe3 Qxd4+ 38. Kxd4 Bf2) 32. Kxf2 {[%emt 0:00:42]} Rg3 {[%emt 0:00:06]} 33. Qxd4 {[%emt 0:00:50]} Qc2 {[%emt 0:00:03] [#]} 34. d6 $1 {[%emt 0:05:32] Intending d7 and mate.} Rd3 {[%emt 0:00:32] [#]} (34... Kg7 35. e6+) 35. Qc4+ $1 {[%emt 0:00:01]} (35. Qxb4 $2 {is the wrong capture.} Rxd2+ $19 (35... Qxc6 $2 {loses.} 36. Qb8+ Kg7 37. Qc7+ Qxc7 38. dxc7 $18) (35... Qxc6 $2 36. Qb8+ Kg7 37. Qc7+ Qxc7 38. dxc7 $18)) ({Don't go for} 35. Bd5+ $2 Kh8 36. Qc4 Rxd2+ (36... Qxd2+ 37. Re2 $18) 37. Re2 Rxe2+ (37... Qxb2 38. Bf3 $11) 38. Qxe2 Qc5+ 39. Ke1 Qxd5 $19) 35... Qxc4 {[%emt 0:00:50]} 36. Rxc4 {[%emt 0:00:01] Ke2 is the strong threat.} Rxd2+ {[%emt 0:00:05]} 37. Ke1 {[%emt 0:00:16]} Rd3 {[%emt 0:00:42]} 38. Be4 {[%emt 0:01:26]} Re3+ {[%emt 0:00:20]} 39. Kd2 {[%emt 0:00:39] d7 would kill now.} Kf7 {[%emt 0:00:26]} 40. Bd5+ {[%emt 0:00:21] Weighted Error Value: White=0.05 (flawless) /Black=0.70.  Mistake:       	---       	Black=4      Inaccurate:     	White=1     	Black=2      OK:         	White=10    	Black=6      Best:        	White=2     	Black=2      Strong:       	White=1     	---} 1-0

[Event "15th Chennai GM Open 2025"]
[Site "Chennai"]
[Date "2025.01.09"]
[Round "10.13"]
[White "Nguyen, Duc Hoa"]
[Black "Arnav Agrawal"]
[Result "1-0"]
[ECO "E70"]
[WhiteElo "2358"]
[BlackElo "2006"]
[Annotator "TA"]
[PlyCount "79"]
[EventDate "2025.01.02"]
[EventType "swiss"]
[EventCountry "IND"]
[SourceTitle "playchess.com"]
[Source "ChessBase"]
[SourceQuality "1"]
[TimeControl "5400+30"]

{[%evp 10,79,10,0,0,-2,5,4,52,26,56,21,107,90,111,110,147,127,164,160,222,111,123,101,101,107,104,87,84,85,228,231,232,238,236,241,287,304,470,421,466,473,540,526,514,507,808,775,1025,1025,1004,862,795,808,815,708,900,902,1094,1072,954,909,878,875,953,947,1665,773,990,729,729,710]} 1. d4 {[%emt 0:01:07]} Nf6 {[%emt 0:00:08]} 2. c4 {[%emt 0:00:18]} g6 {[%emt 0:00:05]} 3. Nc3 {[%emt 0:00:09]} Bg7 {[%emt 0:00:08]} 4. e4 {[%emt 0:00:21][%cal Be2e4,Be4e5][%mdl 32]} O-O {[%emt 0:00:06]} 5. e5 {[%emt 0:01:38]} Ne8 {[%emt 0:00:07]} 6. Nf3 {[%emt 0:01:50]} d6 {[%emt 0:00:07]} 7. Bf4 {[%emt 0:00:31]} Nc6 {[%emt 0:04:52]} 8. h3 {[%emt 0:00:23]} h6 {[%emt 0:05:11]} (8... Bf5 $11 {was preferable.}) 9. Be2 {[%emt 0:04:01]} g5 {[%emt 0:15:04]} 10. Bg3 {[%emt 0:04:33]} Bf5 {[%emt 0:00:51]} (10... dxe5 $11 {keeps the balance.} 11. d5 (11. Bxe5 Nxe5 12. dxe5 Qxd1+ 13. Rxd1 c6 $11) (11. dxe5 Qxd1+ 12. Rxd1 f5 $14) 11... Nd4) 11. Qb3 $16 {[%emt 0:02:26]} Qc8 {[%emt 0:11:36]} 12. Rd1 {[%emt 0:00:39]} dxe5 {[%emt 0:01:59]} 13. dxe5 {[%emt 0:00:47]} (13. Nxe5 $6 Nxe5 14. dxe5 (14. Bxe5 Bxe5 15. dxe5 c6 $14) 14... c6 $14) 13... Bh8 {[%emt 0:00:20]} 14. Nd5 {[%emt 0:03:22]} Ng7 {[%emt 0:15:08] [#]} (14... Be4 $16 15. Qe3 Bxf3) 15. Nd4 {[%emt 0:02:30]} ({Better is} 15. h4 $1 $18 {[%cal Rh4g5]}) 15... Re8 {[%emt 0:00:13] [#]} 16. e6 $1 {[%emt 0:05:26][%mdl 512]} Bxe6 {[%emt 0:03:24]} 17. Nxc7 {[%emt 0:00:35] White has more active pieces.} Nxd4 {[%emt 0:00:06]} 18. Rxd4 {[%emt 0:00:13][%cal Od4d2]} Nf5 {[%emt 0:00:20]} 19. Rd2 $36 {[%emt 0:00:20][%mdl 2048] White is on the roll.} Nxg3 {[%emt 0:00:24]} (19... b5 $16 {keeps fighting.}) 20. Qxg3 $18 {[%emt 0:00:11][%cal Oh3h4]} Rd8 {[%emt 0:04:43] [#]} 21. Rxd8+ $1 {[%emt 0:01:11]} Qxd8 {[%emt 0:00:07]} 22. Nxa8 {[%emt 0:00:11]} Qa5+ {[%emt 0:09:37]} 23. Kf1 {[%emt 0:00:21] and Qb8+ would now be decisive} Qxa2 {[%emt 0:05:25]} (23... Qd8 $142 24. Nc7 Bxc4) 24. Qb8+ {[%emt 0:00:31]} Kg7 {[%emt 0:01:00] ( -> ...Qa1+)} 25. g3 {[%emt 0:01:43]} (25. Qxb7 $2 {is a self mate.} Qb1+) 25... Qxb2 {[%emt 0:01:20]} 26. Nc7 {[%emt 0:01:56][%cal Ba8c7,Bc7d5,Bd5e3][%mdl 32]} Bf5 {[%emt 0:04:36]} 27. Bf3 {[%emt 0:00:15] Prevents Be4.} b6 {[%emt 0:02:40]} (27... Kh7 $142 28. Qe8 (28. Qxb7 Qxb7 29. Bxb7 a5 $18) (28. Qxa7 $2 {loses.} Bd4 $19) 28... Bg6) 28. Nd5 {[%emt 0:01:32]} Bd3+ {[%emt 0:04:28]} 29. Kg2 {[%emt 0:00:10]} Be2 {[%emt 0:00:03]} 30. Re1 {[%emt 0:01:23]} (30. Nxe7 Bxf3+ 31. Kxf3 Qf6+ 32. Kg2 Qxe7 $18) 30... Bxf3+ {[%emt 0:00:31]} 31. Kxf3 {[%emt 0:00:07]} e6 {[%emt 0:00:15]} 32. Ne3 {[%emt 0:00:45]} a5 {[%emt 0:00:15]} 33. Qe8 {[%emt 0:00:34]} h5 {[%emt 0:01:43][%cal Bh6h5,Bh5h4][%mdl 32]} 34. Rd1 {[%emt 0:00:19]} Kg6 {[%emt 0:04:33]} 35. Rd7 {[%emt 0:00:34]} Qf6+ {[%emt 0:00:10]} 36. Kg2 {[%emt 0:00:07]} Bg7 {[%emt 0:00:12]} 37. Rb7 {[%emt 0:00:31]} h4 {[%emt 0:00:06]} 38. Qc6 {[%emt 0:01:16]} Qe5 {[%emt 0:02:02] Prevents Qe4+.} 39. g4 {[%emt 0:01:21]} Qf4 {[%emt 0:00:47]} 40. Qf3 {[%emt 0:00:15]} 1-0

[Event "15th Chennai GM Open 2025"]
[Site "Chennai"]
[Date "2025.01.09"]
[Round "10.14"]
[White "Mohamed Anees M"]
[Black "Anadkat Kartavya"]
[Result "1-0"]
[ECO "C88"]
[WhiteElo "2334"]
[BlackElo "2139"]
[Annotator "TA"]
[PlyCount "95"]
[EventDate "2025.01.02"]
[EventType "swiss"]
[EventCountry "IND"]
[SourceTitle "playchess.com"]
[Source "ChessBase"]
[SourceQuality "1"]
[TimeControl "5400+30"]

{[%evp 22,95,0,0,0,12,17,2,12,26,22,22,22,18,33,41,70,48,115,112,94,113,108,34,37,16,76,64,84,18,14,14,160,139,135,136,202,210,208,195,208,186,202,197,179,172,216,155,158,88,230,229,229,224,218,235,263,260,338,300,362,389,363,379,454,468,480,499,484,445,527,524,648,647,1159,1147]} 1. e4 {[%emt 0:00:02]} e5 {[%emt 0:07:23]} 2. Nf3 {[%emt 0:00:06]} Nc6 {[%emt 0:00:03]} 3. Bb5 {[%emt 0:00:06][%cal Bf1b5,Bb5a4,Ba4b3][%mdl 32]} a6 {[%emt 0:00:04]} 4. Ba4 {[%emt 0:00:05]} Nf6 {[%emt 0:00:05]} 5. O-O {[%emt 0:00:06]} Be7 {[%emt 0:00:03]} 6. Re1 {[%emt 0:00:43]} b5 {[%emt 0:00:07]} 7. Bb3 {[%emt 0:00:05]} O-O {[%emt 0:00:04]} 8. h3 {[%emt 0:00:21]} Bb7 {[%emt 0:01:24]} 9. d3 {[%emt 0:00:24]} d5 {[%emt 0:00:26]} 10. exd5 {[%emt 0:01:28]} Nxd5 {[%emt 0:00:08]} 11. Nxe5 {[%emt 0:01:48]} Nxe5 {[%emt 0:04:56]} 12. Rxe5 {[%emt 0:00:06]} Qd6 {[%emt 0:00:02]} 13. Re1 {[%emt 0:02:03]} c5 {[%emt 0:00:11]} 14. Nd2 {[%emt 0:06:55]} Rae8 {[%emt 0:00:29]} 15. Ne4 {[%emt 0:04:58]} Qc6 {[%emt 0:03:57]} 16. c4 {[%emt 0:06:22]} Nb6 $1 {[%emt 0:05:06]} 17. f3 {[%emt 0:12:26]} Bh4 {[%emt 0:18:08] and ...bxc4 would now be decisive} 18. Rf1 $36 {[%emt 0:02:18][%mdl 2048] White is more active.} Kh8 {[%emt 0:08:11]} 19. Bf4 {[%emt 0:07:24]} Rd8 {[%emt 0:03:04]} ({Better is} 19... f5 $14 20. Nd6 Rd8) 20. Qc2 $1 $16 {[%emt 0:02:02]} b4 {[%emt 0:03:05]} 21. Be3 {[%emt 0:13:34]} Be7 {[%emt 0:02:18]} 22. a3 {[%emt 0:14:44]} (22. Qf2 $16) 22... f5 $14 {[%emt 0:00:38]} 23. Nd2 {[%emt 0:00:23]} a5 {[%emt 0:03:47]} (23... bxa3 $1 $11 {remains equal.} 24. Rxa3 (24. bxa3 Qd6 $11) 24... Rfe8) 24. axb4 $16 axb4 {[%emt 0:00:07]} 25. Rfd1 {[%emt 0:00:45]} (25. Bf2 $1 $16) 25... Bf6 $11 {[%emt 0:05:06]} 26. Nf1 {[%emt 0:05:13]} (26. Ra5 {is more complex.} Rfe8 27. Bxc5 Re2 28. d4) 26... Bd4 {[%emt 0:05:00]} (26... g5 $11) 27. Bxd4 {[%emt 0:01:00]} Rxd4 {[%emt 0:00:03]} 28. Qf2 {[%emt 0:00:34]} f4 {[%emt 0:06:47]} (28... Qd6 $16) 29. Bc2 $18 {[%emt 0:01:30]} Nc8 {[%emt 0:01:59][%cal Bb6c8,Bc8e7,Be7f5,Bf5e3][%mdl 32]} 30. Nd2 {[%emt 0:02:10]} Ne7 {[%emt 0:03:02]} 31. Nb3 {[%emt 0:01:04]} Nf5 {[%emt 0:00:08]} 32. Ra5 {[%emt 0:01:27][%cal Oa5c5]} Rdd8 {[%emt 0:07:40]} 33. Rxc5 {[%emt 0:01:19]} (33. Nxc5 Ne3 $16) (33. Qxc5 $6 Qf6 $14) 33... Qh6 {[%emt 0:00:08]} 34. Re1 {[%emt 0:05:35]} Ne3 {[%emt 0:00:14] [#]} 35. Re5 {[%emt 0:02:36]} (35. d4 $142 $1) 35... Rde8 {[%emt 0:02:35] [#]} (35... Bc6 $16 {was worth a try.}) 36. Rxe8 $1 {[%emt 0:02:08]} Rxe8 {[%emt 0:00:00]} 37. d4 {[%emt 0:00:26][%cal Bd3d4,Bd4d5][%mdl 32]} Bc8 {[%emt 0:01:14]} 38. Bd3 {[%emt 0:02:11]} Rd8 {[%emt 0:05:18]} 39. d5 {[%emt 0:01:23]} Re8 {[%emt 0:00:22]} 40. Nd4 {[%emt 0:00:57]} Qg5 {[%emt 0:04:09]} 41. Kh2 {[%emt 0:01:09]} Qf6 {[%emt 0:01:42]} 42. Nc2 {[%emt 0:00:41]} (42. Nc6 b3 43. c5 g6 $18) 42... g6 {[%emt 0:01:36]} 43. b3 {[%emt 0:00:40]} (43. Nxb4 Bd7 44. Re2 Qd4 $18) (43. Nxe3 fxe3 44. Qe2 Bf5 45. Bxf5 Qxf5 $18) 43... Qe5 {[%emt 0:00:39]} 44. Be4 {[%emt 0:00:24]} (44. Nxb4 Qc3 $16) 44... Bf5 {[%emt 0:00:24]} 45. Nxe3 {[%emt 0:00:32]} ({Less strong is} 45. Nxb4 Bxe4 46. Nc6 (46. fxe4 g5 $18) 46... Qf5 47. fxe4 Qxe4 $18) ({But not} 45. Bxf5 gxf5 46. Qh4 (46. Nxb4 Qc3 $18) 46... Rg8 $18) 45... fxe3+ {[%emt 0:00:02]} 46. Qg3 {[%emt 0:00:03] Hoping for Qxe5+.} Qd4 {[%emt 0:00:18]} 47. Qf4 {[%emt 0:00:28][%csl LRe3,LRf5]} Bxh3 {[%emt 0:01:01]} 48. Kxh3 {[%emt 0:00:29]} 1-0

[Event "15th Chennai GM Open 2025"]
[Site "Chennai"]
[Date "2025.01.09"]
[Round "10.15"]
[White "Laxman, R.R."]
[Black "Mayukh Majumder"]
[Result "1/2-1/2"]
[ECO "D94"]
[WhiteElo "2303"]
[BlackElo "2013"]
[Annotator "TA"]
[PlyCount "105"]
[EventDate "2025.01.02"]
[EventType "swiss"]
[EventCountry "IND"]
[SourceTitle "playchess.com"]
[Source "ChessBase"]
[SourceQuality "1"]
[TimeControl "5400+30"]

{[%evp 11,105,8,13,-22,14,0,22,6,57,53,111,104,124,123,122,101,118,89,86,90,160,106,105,44,53,22,41,0,45,-71,27,-52,-48,-28,-22,-64,-26,-58,-79,-60,-23,-39,-31,-106,-107,-118,-66,-63,-57,-68,-55,-62,-56,-81,-36,-39,-46,-56,-19,-122,-79,-80,-82,-85,-63,-97,-94,-105,-99,-140,-77,-109,-75,-75,-84,-81,-81,-75,-63,-57,-50,-60,-55,-59,-64,-86,-87,-93,-68,-85,-68,-66,-15,-15,-15,-15]} 1. d4 {[%emt 0:00:21]} Nf6 {[%emt 0:00:07]} 2. c4 {[%emt 0:00:02]} g6 {[%emt 0:00:06]} 3. Nf3 {[%emt 0:00:41]} Bg7 {[%emt 0:00:13]} 4. Nc3 {[%emt 0:00:25]} d5 {[%emt 0:01:40]} 5. e3 {[%emt 0:00:05]} O-O {[%emt 0:00:37]} 6. b4 {[%emt 0:00:03]} c6 {[%emt 0:03:48]} 7. Be2 {[%emt 0:02:09]} Be6 {[%emt 0:04:08]} 8. c5 {[%emt 0:04:59]} a6 {[%emt 0:00:45]} 9. O-O {[%emt 0:00:14]} Nbd7 {[%emt 0:00:09]} (9... Bg4 $11) 10. Ng5 $1 $14 {[%emt 0:00:42][%cal Bf3g5,Bg5h3,Bh3f4][%mdl 32]} Bf5 {[%emt 0:08:00]} (10... Ne8 $14) 11. g4 $16 {[%emt 0:04:34] White is more active.} h6 {[%emt 0:03:54]} 12. Nh3 {[%emt 0:01:36]} Be6 {[%emt 0:03:23]} 13. Nf4 {[%emt 0:00:02]} g5 {[%emt 0:02:22]} 14. Nxe6 {[%emt 0:00:07]} fxe6 {[%emt 0:00:05]} 15. f4 {[%emt 0:00:05]} Nh7 {[%emt 0:05:00]} ({Black should try} 15... gxf4 16. exf4 a5) 16. Qd3 {[%emt 0:02:23]} (16. Rb1 $142) 16... a5 {[%emt 0:04:47]} 17. bxa5 {[%emt 0:01:51]} (17. b5 $16) 17... gxf4 $1 $14 {[%emt 0:01:20]} 18. exf4 {[%emt 0:00:08][%cal Oa5a6]} Qxa5 {[%emt 0:00:05][%cal Od7c5]} 19. Qe3 {[%emt 0:06:28][%cal Oa1b1] And now Rb1! would win.} (19. Rb1 $5) 19... Nxc5 {[%emt 0:14:14]} 20. Bd2 {[%emt 0:00:06] [#]} (20. dxc5 $2 Qxc3 21. Qxc3 (21. Qxe6+ $2 Rf7 $19) 21... Bxc3 $19) (20. Rb1 $1 $14 {stays ahead.}) 20... Na4 {[%emt 0:00:25]} (20... Qb4 $1 $17 21. Nb5 (21. dxc5 $2 Bd4 $19) 21... Qa4 22. dxc5 cxb5 23. Qxe6+ Kh8) 21. Nxa4 {[%emt 0:03:28]} (21. Qxe6+ Rf7 22. Kh1 Qa7 $19 (22... Nxc3 23. Bd3 $11)) ({White should try} 21. Bd3 $11 Nb2 22. Nd1 (22. Qxe6+ Kh8 $11)) 21... Qxa4 $15 {[%emt 0:00:12]} 22. Bc3 $1 {[%emt 0:00:02][%cal Oe2d3]} (22. Qxe6+ $2 Rf7 23. Bc3 Bxd4+ 24. Bxd4 Qxd4+ 25. Kh1 Qf6 $17 (25... Nf6 $2 26. Bf3 $17)) 22... Kh8 {[%emt 0:02:48]} 23. Bd1 {[%emt 0:04:18]} Qa3 $1 {[%emt 0:03:50]} 24. Bc2 {[%emt 0:00:53][%cal Og4g5]} Nf6 {[%emt 0:03:08]} 25. Rf3 {[%emt 0:07:27]} Nxg4 {[%emt 0:07:14]} 26. Qxe6 {[%emt 0:00:02]} Nf6 {[%emt 0:00:08][%cal Bg4f6,Bf6h5,Bh5f4][%mdl 32]} 27. Rg3 {[%emt 0:01:36] [#]} (27. Kh1 $15) 27... Qd6 $1 $17 {[%emt 0:02:48]} ({Don't blunder} 27... Nh5 $2 28. Qg6 Kg8 29. Qxh5 $18) 28. Qe5 {[%emt 0:00:09]} Qxe5 {[%emt 0:04:36]} (28... Ra3 $17 {[%cal Oa3c3]} 29. Qxd6 exd6) 29. fxe5 $15 {[%emt 0:00:04]} Nh5 {[%emt 0:02:06]} 30. Re3 $1 {[%emt 0:00:58]} Nf4 {[%emt 0:01:19]} 31. a4 {[%emt 0:00:51]} Ne6 {[%emt 0:00:22]} 32. Rd3 {[%emt 0:01:01]} c5 {[%emt 0:04:09]} 33. dxc5 {[%emt 0:00:17]} d4 {[%emt 0:01:34]} 34. Bb4 {[%emt 0:00:06][%cal Oc5c6]} Nf4 {[%emt 0:00:21]} (34... Bxe5 35. Re1 Rf5 36. Rh3 Rg5+ 37. Kh1 $16) (34... Rac8 $5 35. Re1 b6 $17) 35. Rd2 {[%emt 0:00:56]} (35. Rf3 $11) 35... Bxe5 {[%emt 0:00:22]} 36. Re1 {[%emt 0:00:09] Prevents d3.} Bf6 {[%emt 0:00:56]} 37. Bb3 {[%emt 0:00:48] Inhibits Nd5.} Rfc8 {[%emt 0:04:34]} 38. a5 {[%emt 0:02:40]} e5 {[%emt 0:00:11]} 39. Re4 {[%emt 0:00:50]} Rc7 {[%emt 0:00:49]} 40. Kf1 {[%emt 0:00:52]} Rac8 {[%emt 0:02:25]} (40... Rf8 $142 {Hoping for ...Bh4.} 41. Ke1 Bh4+ 42. Kd1 Rf5) 41. Bc4 {[%emt 0:01:19]} Rxc5 {[%emt 0:01:03]} 42. Bxc5 {[%emt 0:00:04]} Rxc5 {[%emt 0:00:03]} 43. Rdxd4 {[%emt 0:02:25]} exd4 {[%emt 0:00:06]} 44. Rxf4 $17 {[%emt 0:00:04][%mdl 4096] Endgame KRB-KRB. Black is a pawn up.} Bg7 {[%emt 0:00:17]} 45. Bd3 {[%emt 0:00:20]} Rxa5 {[%emt 0:00:07]} 46. Rf7 {[%emt 0:00:08]} Ra1+ {[%emt 0:01:23]} 47. Kg2 {[%emt 0:00:08]} Ra2+ {[%emt 0:00:23]} 48. Kh1 {[%emt 0:00:42]} Rd2 {[%emt 0:02:15]} 49. Be4 {[%emt 0:00:50]} Re2 {[%emt 0:02:36]} 50. Bxb7 {[%emt 0:02:05]} d3 {[%emt 0:02:25]} 51. Rd7 {[%emt 0:00:10]} Be5 {[%emt 0:03:02]} (51... d2 $15 52. Bf3 Re3) 52. Rxd3 $11 {[%emt 0:00:12]} Rxh2+ {[%emt 0:00:09]} 53. Kg1 {[%emt 0:00:02]} 1/2-1/2